[Event "German Bundesliga 2024-25"]
[Site "Germany"]
[Date "2025.01.11"]
[Round "5.16"]
[White "Tischbierek, Raj"]
[Black "Sedlak, Nikola"]
[Result "0-1"]
[Annotator "TA"]
[ECO "B70"]
[WhiteElo "2432"]
[BlackElo "2444"]
[PlyCount "108"]
[EventDate "2024.09.27"]
[EventType "team-tourn"]
[EventCountry "GER"]
[SourceTitle "playchess.com"]
[Source "ChessBase"]
[SourceQuality "1"]
[WhiteTeam "TU Dresden"]
[BlackTeam "Deggendorf"]
[TimeControl "40/5400+30:1800+30"]

{[%evp 18,108,27,14,1,0,0,-18,0,0,0,0,0,0,34,25,45,45,59,47,76,83,76,71,87,79,88,84,77,-27,106,112,119,0,0,-18,-17,-26,-12,-25,-24,-65,-61,-64,-62,-68,-57,-78,-56,-85,-86,-83,-40,-38,-39,-41,-33,-33,-33,-97,-104,-89,-8,-68,-8,-8,-8,-91,-84,-71,-49,-398,-398,-1173,-1117,-1291,-1284,-1284,-1284,-1284,-1264,-1251,-1210,-807,-837,-1208,-1183,-1183,-924,-5310,-4854,-1372,-1075]} 1. e4 {[%emt 0:00:04]} c5 {[%emt 0:01:15]} 2. Nf3 {[%emt 0:00:54]} d6 {[%emt 0:00:25]} 3. d4 {[%emt 0:00:25]} cxd4 {[%emt 0:00:10]} 4. Nxd4 {[%emt 0:00:05]} Nf6 {[%emt 0:00:12]} 5. Nc3 {[%emt 0:00:06]} Bd7 {[%emt 0:00:15]} 6. Be2 {[%emt 0:00:44]} Nc6 {[%emt 0:00:57]} 7. O-O {[%emt 0:01:18]} g6 {[%emt 0:01:02]} 8. Nb3 {[%emt 0:02:19]} Bg7 {[%emt 0:01:23]} 9. Bg5 {[%emt 0:00:12]} O-O {[%emt 0:03:12]} 10. Kh1 {[%emt 0:00:32]} Rb8 {[%emt 0:05:14]} 11. f4 {[%emt 0:05:17]} b5 {[%emt 0:01:24]} 12. Bf3 {[%emt 0:03:25]} (12. Bxb5 Nxe4 13. Nxe4 Rxb5 14. Nxd6 Rxg5 15. Nxf7 Rxf7 $15) 12... a5 {[%emt 0:02:08]} 13. a4 {[%emt 0:06:58]} bxa4 {[%emt 0:01:14]} 14. Nxa4 {[%emt 0:13:32]} Qc7 {[%emt 0:16:09]} 15. Nc3 {[%emt 0:13:30]} Be6 {[%emt 0:02:02]} 16. Nd5 $1 {[%emt 0:02:15]} Bxd5 {[%emt 0:00:38]} 17. exd5 {[%emt 0:00:07]} Nb4 {[%emt 0:00:17]} 18. c3 {[%emt 0:08:01]} Nd3 {[%emt 0:01:38]} 19. Nxa5 {[%emt 0:06:36]} Nxb2 {[%emt 0:01:00]} 20. Qe2 {[%emt 0:03:54] Hoping for Nc6.} Qxc3 {[%emt 0:02:09]} 21. Nc6 $1 {[%emt 0:05:23]} Rb3 {[%emt 0:05:27]} 22. Qxe7 {[%emt 0:06:38]} (22. Nxe7+ $6 Kh8 $11) 22... Nd3 {[%emt 0:01:18] Prevents Rac1.} 23. Ra2 {[%emt 0:07:51] Repels Qb2} (23. Qxd6 $2 Nf2+ 24. Kg1 N6e4 25. Bxe4 Nxe4 26. Ne7+ Kh8 $19) (23. Bh4 $1 $16) 23... Rb2 {[%emt 0:17:47]} (23... h6 $11 24. Bh4 Nxf4 25. Qxd6 Qc4 26. Ne7+ Kh7) 24. Rxb2 $16 {[%emt 0:00:34]} Qxb2 {[%emt 0:00:08] [#]} 25. Qe3 {[%emt 0:04:03] Wards off Nf2+} (25. Bh4 $1 $16) 25... Nc5 $40 {[%emt 0:01:17][%mdl 128] Black is up to no good.} 26. Qc1 {[%emt 0:02:17]} Qxc1 {[%emt 0:04:30]} 27. Rxc1 {[%emt 0:00:06]} Re8 {[%emt 0:00:36]} 28. Rb1 {[%emt 0:04:22]} Nfe4 {[%emt 0:04:22]} 29. Bxe4 {[%emt 0:00:13]} Nxe4 {[%emt 0:00:07]} 30. Be7 {[%emt 0:02:44]} Bf6 {[%emt 0:03:22]} 31. Rb7 {[%emt 0:00:56]} Bxe7 {[%emt 0:05:35]} 32. Rxe7 {[%emt 0:00:15]} Kf8 {[%emt 0:00:06]} 33. Rxe8+ {[%emt 0:00:19]} Kxe8 $15 {[%emt 0:00:07][%mdl 4096] Endgame KN-KN} 34. g3 {[%emt 0:00:21]} Kd7 {[%emt 0:00:52]} 35. Kg2 {[%emt 0:00:12]} Nf6 {[%emt 0:00:46]} 36. Nb4 {[%emt 0:00:07][%cal Of4f5]} Kc7 {[%emt 0:00:21]} 37. Kf3 {[%emt 0:00:38]} Kb6 {[%emt 0:00:07]} 38. Nc6 {[%emt 0:01:38]} (38. f5 $15) 38... Nxd5 $17 {[%emt 0:00:34]} 39. Nd8 {[%emt 0:00:03]} f6 {[%emt 0:00:40]} (39... f5 $17 {And now ...Nf6 would win.} 40. Ne6 Kc6) 40. g4 {[%emt 0:00:29]} ({White should try} 40. Ne6 $11) 40... Kc7 {[%emt 0:02:18]} ({Black should play} 40... Nc7 $15 41. Ke4 Kc5 42. Nb7+ Kc6 43. Na5+ Kd7) 41. Ne6+ $11 {[%emt 0:04:37]} Kd7 {[%emt 0:00:14]} 42. Nd4 {[%emt 0:04:37]} (42. Nf8+ $11 {keeps the balance.} Ke7 43. Nxh7) 42... Nc7 $17 {[%emt 0:02:26]} 43. f5 {[%emt 0:01:40] Prevents Ne6.} g5 {[%emt 0:00:21]} 44. h4 $2 {[%emt 0:02:19][%mdl 8192]} h6 $19 {[%emt 0:01:29]} ({Less strong is} 44... gxh4 45. Kg2 $17) 45. hxg5 $2 {[%emt 0:01:02]} (45. Ne2 d5 (45... gxh4 46. Kg2 $17) 46. Nd4) 45... hxg5 {[%emt 0:00:08]} 46. Ke3 {[%emt 0:01:44] [#]} d5 $1 {[%emt 0:00:09]} 47. Kd3 {[%emt 0:01:33]} Kd6 {[%emt 0:00:10]} 48. Ke3 {[%emt 0:00:16]} Kc5 {[%emt 0:00:30]} 49. Kd3 {[%emt 0:01:05]} Nb5 {[%emt 0:00:38]} 50. Ne6+ {[%emt 0:01:06]} Kd6 {[%emt 0:00:09]} 51. Ke3 {[%emt 0:01:01]} Na7 {[%emt 0:00:52]} 52. Nd4 {[%emt 0:01:09]} Nc6 {[%emt 0:01:04] ( -> ...Nxd4)} 53. Nb5+ {[%emt 0:00:42]} Kc5 {[%emt 0:00:54]} 54. Nc7 {[%emt 0:00:18]} Ne5 {[%emt 0:00:28]} 0-1